bitfinex/quotes_BTCUSD_20240906
["timestamp","ask_amount","ask_price","bid_price","bid_amount"]
[1725645574037,1.56352229,54068.0,54067.0,0.00862]
[1725645574278,1.56352229,54068.0,54067.0,0.00962]
[1725645574497,1.57152229,54068.0,54067.0,0.00962]
[1725645574929,1.56252229,54068.0,54067.0,0.00162]
[1725645575148,1.56852229,54068.0,54067.0,0.00262]
[1725645575382,1.57452229,54068.0,54067.0,0.00362]
[1725645575609,1.57452229,54068.0,54067.0,0.00262]
[1725645575839,1.294807,54062.0,54051.0,0.73610836]
[1725645576057,1.60906529,54062.0,54051.0,0.73610836]
[1725645576296,1.70906529,54062.0,54051.0,0.1818]
[1725645576780,1.56266529,54062.0,54051.0,0.1818]
[1725645577669,1.56266529,54062.0,54061.0,0.00264]
[1725645577946,1.19272029,54062.0,54061.0,0.17764]
[1725645578821,1.21183106,54062.0,54061.0,0.18064]
[1725645580615,1.11183106,54062.0,54061.0,0.18064]
[1725645584697,0.16785829,54062.0,54061.0,0.18064]
[1725645584923,0.35283029,54062.0,54061.0,0.18064]
[1725645585144,1.09272029,54062.0,54061.0,0.18064]
[1725645585361,0.72277529,54062.0,54061.0,0.18064]
[1725645586247,0.72277529,54062.0,54061.0,0.00564]
[1725645586248,1.09272029,54062.0,54061.0,0.00564]
[1725645586469,1.46266529,54062.0,54061.0,0.00564]
[1725645587161,1.09272029,54062.0,54061.0,0.00564]
[1725645587387,1.09272029,54062.0,54061.0,0.00464]
[1725645587615,1.09372029,54062.0,54061.0,0.00464]
[1725645587831,1.09372029,54062.0,54061.0,0.00164]
[1725645588052,1.46366529,54062.0,54061.0,0.00164]
[1725645588287,1.09272029,54062.0,54061.0,0.00264]
[1725645589650,1.46266529,54062.0,54061.0,0.00264]
[1725645589872,1.09372029,54062.0,54061.0,0.00264]
[1725645590091,1.46366529,54062.0,54061.0,0.00264]
[1725645590776,1.09372029,54062.0,54061.0,0.00264]
[1725645592174,1.46366529,54062.0,54061.0,0.00264]
[1725645592402,1.56366529,54062.0,54061.0,0.00264]
[1725645592876,1.395807,54062.0,54061.0,0.00264]
[1725645593124,1.56366529,54062.0,54061.0,0.00264]
[1725645596143,1.19372029,54062.0,54061.0,0.17414]
[1725645596375,1.19372029,54062.0,54061.0,0.00264]
[1725645596593,1.93361029,54062.0,54061.0,0.00264]
[1725645596808,1.56366529,54062.0,54061.0,0.00264]
[1725645597746,1.59968027,54062.0,54061.0,0.00264]
[1725645600098,1.59968027,54062.0,54061.0,0.17474]
[1725645600099,1.43182198,54062.0,54061.0,0.17474]
[1725645600354,0.03701498,54062.0,54061.0,0.30984]
[1725645600618,0.03701498,54062.0,54061.0,0.00264]
[1725645600619,0.185972,54062.0,54061.0,0.00264]
[1725645600866,1.33182286,54062.0,54061.0,0.00264]
[1725645601169,1.41574255,54062.0,54061.0,0.00264]
[1725645601379,0.15593683,54062.0,54061.0,0.32064]
[1725645601585,0.001,54062.0,54061.0,0.32364]
[1725645601800,0.185972,54062.0,54061.0,0.32364]
[1725645602017,0.555917,54062.0,54061.0,0.32364]
[1725645602246,0.555917,54062.0,54061.0,0.17814]
[1725645602247,0.925862,54062.0,54061.0,0.17814]
[1725645602501,0.185972,54062.0,54061.0,0.18014]
[1725645602990,0.001,54062.0,54061.0,0.18014]
[1725645603254,0.001,54062.0,54061.0,0.88426707]
[1725645603513,0.000816,54068.0,54067.0,1.609888]
[1725645604002,0.000816,54068.0,54067.0,1.646958]
[1725645604225,0.000816,54068.0,54067.0,1.609888]
[1725645604483,0.01915537,54082.0,54081.0,0.3175]
[1725645604484,0.184904,54082.0,54081.0,0.3175]
[1725645604718,0.26271365,54096.0,54081.0,0.3175]
[1725645604719,0.1437,54096.0,54081.0,0.3175]
[1725645604982,0.01977341,54087.0,54081.0,0.3175]
[1725645605207,0.03567532,54086.0,54081.0,0.3175]
[1725645605451,0.369775,54087.0,54081.0,0.3175]
[1725645605452,0.184901,54083.0,54081.0,0.3175]
[1725645605681,0.369775,54087.0,54081.0,0.3175]
[1725645605682,0.184904,54082.0,54081.0,0.3175]
[1725645605922,0.369759,54090.0,54068.0,0.1791]
[1725645605923,0.15674115,54087.0,54068.0,0.1791]
[1725645606182,0.05654063,54082.0,54068.0,0.1791]
[1725645606437,0.369871,54073.0,54068.0,0.1791]
[1725645606951,0.05654063,54082.0,54068.0,0.1791]
[1725645606952,0.184948,54069.0,54068.0,0.1791]
[1725645607207,0.05654063,54082.0,54068.0,0.1791]
[1725645607468,0.184948,54069.0,54068.0,0.1791]
[1725645607716,0.369874,54073.0,54068.0,0.3147]
[1725645607948,0.184946,54070.0,54068.0,0.3147]
[1725645608192,0.184948,54069.0,54068.0,0.3197]
[1725645608710,0.184948,54069.0,54068.0,0.3147]
[1725645608711,0.924742,54069.0,54068.0,0.3147]
[1725645608984,1.295639,54069.0,54068.0,0.1921]
[1725645609715,1.295639,54069.0,54068.0,0.013]
[1725645609958,1.295639,54069.0,54068.0,0.015]
[1725645610425,0.925742,54069.0,54068.0,0.015]
[1725645610663,1.31499,54069.0,54068.0,0.015]
[1725645610903,1.962287,54069.0,54068.0,0.013]
[1725645611144,1.41599,54069.0,54068.0,0.023]
[1725645611442,0.576196,54069.0,54068.0,0.1638]
[1725645611702,0.554845,54069.0,54068.0,0.1408]
[1725645611965,0.931742,54069.0,54068.0,0.1418]
[1725645612214,0.007,54069.0,54068.0,0.326752]
[1725645612459,0.007,54069.0,54068.0,0.1418]
[1725645612733,0.561845,54069.0,54068.0,0.1418]
[1725645612979,0.191948,54069.0,54068.0,0.1418]
[1725645613217,0.193948,54069.0,54068.0,0.1418]
[1725645613465,0.564845,54069.0,54068.0,0.1468]
[1725645613693,0.554845,54069.0,54068.0,0.1408]
[1725645613923,0.185948,54069.0,54068.0,0.1468]
[1725645614161,0.001,54069.0,54068.0,0.3296]
[1725645614423,0.184909,54081.0,54077.0,0.1457]
[1725645614663,0.369734,54093.0,54079.0,0.3285]
[1725645614898,0.369734,54093.0,54073.0,0.369869]
[1725645614899,0.369738,54093.0,54086.0,0.1828]
[1725645615143,0.184876,54091.0,54087.0,0.1457]
[1725645615390,0.18488,54089.0,54088.0,0.1828]
[1725645615641,0.370571,54090.0,54089.0,0.18488]
[1725645615642,0.000816,54090.0,54089.0,0.18488]
[1725645615903,0.1476,54105.0,54087.0,0.1457]
[1725645615904,0.369663,54104.0,54096.0,0.184854]
[1725645616130,0.369636,54108.0,54097.0,0.33435]
[1725645616386,0.369636,54108.0,54098.0,0.1852]
[1725645616387,0.184844,54100.0,54098.0,0.1852]
[1725645616692,0.03,54115.0,54098.0,0.1852]
[1725645616693,0.184846,54099.0,54098.0,0.1852]
[1725645616940,0.184842,54101.0,54098.0,0.1852]
[1725645617167,0.184836,54102.0,54098.0,0.370048]
[1725645617398,0.371659,54104.0,54098.0,0.370049]
[1725645617642,0.184833,54103.0,54098.0,0.370049]
[1725645617897,0.000815,54116.0,54099.0,0.369689]
[1725645618133,0.369584,54115.0,54108.0,0.325]
[1725645618364,0.185604,54116.0,54111.0,0.184803]
[1725645618616,0.185604,54116.0,54108.0,0.325]
[1725645618617,0.000815,54116.0,54109.0,1.2753]
[1725645618871,0.000815,54116.0,54112.0,0.369603]
[1725645619117,0.000815,54116.0,54110.0,0.1759]
[1725645619344,0.185603,54116.0,54110.0,0.1759]
[1725645619566,0.185604,54116.0,54110.0,0.1759]
[1725645619813,0.184793,54115.0,54111.0,0.184804]
[1725645620600,0.000815,54116.0,54113.0,0.184795]
[1725645620830,0.000815,54116.0,54111.0,0.369608]
[1725645620831,0.000815,54116.0,54111.0,0.184803]
[1725645621061,0.184792,54115.0,54110.0,0.1759]
[1725645621300,0.184794,54115.0,54110.0,0.1829]
[1725645621567,0.184796,54114.0,54111.0,0.005]
[1725645621804,0.184801,54112.0,54111.0,0.005]
[1725645622041,0.924007,54112.0,54111.0,0.005]
[1725645622268,1.39361,54112.0,54111.0,0.005]
[1725645622762,0.924162,54103.0,54102.0,0.1746]
[1725645623910,0.554497,54103.0,54102.0,0.1746]
[1725645624264,0.554497,54103.0,54102.0,0.1776]
[1725645624391,0.554497,54103.0,54102.0,0.1746]
[1725645624850,0.554497,54103.0,54102.0,0.1786]
[1725645625081,0.184846,54099.0,54098.0,0.18313]
[1725645625307,0.369679,54101.0,54098.0,0.18313]
[1725645625528,0.184839,54102.0,54098.0,0.18313]
[1725645625757,0.369672,54102.0,54098.0,0.18313]
[1725645625980,0.184841,54101.0,54098.0,0.18313]
[1725645626202,0.369672,54102.0,54098.0,0.18313]
[1725645626435,0.01960654,54103.0,54098.0,0.18313]
[1725645626673,0.184841,54101.0,54098.0,0.18313]
[1725645626907,0.38927754,54103.0,54098.0,0.00163]
[1725645626908,0.554538,54099.0,54098.0,0.00163]
[1725645627129,0.369667,54103.0,54098.0,0.00163]
[1725645627361,0.1,54112.0,54098.0,0.00563]
[1725645627590,0.92423,54099.0,54098.0,0.00563]
[1725645627823,1.293922,54099.0,54098.0,0.00563]
[1725645628100,1.293922,54099.0,54098.0,0.00163]
[1725645628335,1.80221536,54099.0,54098.0,0.00163]
[1725645628563,1.763614,54099.0,54098.0,0.00363]
[1725645628794,1.765614,54099.0,54098.0,0.00963]
[1725645629026,1.763614,54099.0,54098.0,0.00963]
[1725645629945,1.763614,54099.0,54098.0,0.00163]
[1725645630174,1.772614,54099.0,54098.0,0.00263]
[1725645630396,1.782614,54099.0,54098.0,0.00363]
[1725645630646,1.782614,54099.0,54098.0,0.00263]
[1725645630879,1.772614,54099.0,54098.0,0.00163]
[1725645631115,1.772614,54099.0,54098.0,0.00363]
[1725645631116,1.796614,54099.0,54098.0,0.00363]
[1725645631339,1.787614,54099.0,54098.0,0.00263]
[1725645631564,1.407922,54099.0,54098.0,0.00163]
[1725645631842,1.43620371,54099.0,54098.0,0.00263]
[1725645632055,1.80589571,54099.0,54098.0,0.00263]
[1725645632276,2.17758771,54099.0,54098.0,0.00263]
[1725645632502,1.81789571,54099.0,54098.0,0.00263]
[1725645632723,1.874353,54099.0,54098.0,0.00263]
[1725645632954,1.884353,54099.0,54098.0,0.00363]
[1725645633204,0.554712,54082.0,54081.0,0.4697]
[1725645633434,0.554712,54082.0,54081.0,0.55430836]
[1725645633435,1.664136,54082.0,54081.0,0.55430836]
[1725645633666,1.664136,54082.0,54072.0,0.1712]
[1725645633667,0.554805,54073.0,54072.0,0.1712]
[1725645634129,0.1,54082.0,54072.0,0.1712]
[1725645634370,0.184935,54073.0,54072.0,0.1712]
[1725645634618,0.184933,54074.0,54072.0,0.1712]
[1725645634848,0.184935,54073.0,54072.0,0.1712]
[1725645635090,0.369834,54079.0,54072.0,0.1712]
[1725645635530,0.02976117,54082.0,54060.0,0.371593]
[1725645635531,0.03476117,54082.0,54077.0,0.319]
[1725645635767,0.015,54082.0,54081.0,0.503907]
[1725645636013,0.015,54082.0,54081.0,0.873722]
[1725645636236,0.015,54082.0,54081.0,0.319]
[1725645636475,0.189904,54082.0,54081.0,0.319]
[1725645636697,0.184904,54082.0,54081.0,0.319]
[1725645636946,0.554712,54082.0,54081.0,0.319]
[1725645637167,0.184897,54084.0,54081.0,0.319]
[1725645637391,0.184904,54082.0,54081.0,0.319]
[1725645637618,0.002,54082.0,54081.0,0.512907]
[1725645637840,0.002,54082.0,54081.0,0.324]
[1725645637841,0.001,54082.0,54081.0,0.324]
[1725645638060,0.369795,54084.0,54081.0,0.319]
[1725645638292,0.185904,54082.0,54081.0,0.323]
[1725645638548,0.184902,54083.0,54081.0,0.324]
[1725645638775,0.184904,54082.0,54081.0,0.324]
[1725645639210,0.184901,54083.0,54081.0,0.324]
[1725645639687,0.184901,54083.0,54081.0,0.319]
[1725645639913,0.001,54082.0,54081.0,0.319]
[1725645640131,0.185897,54084.0,54081.0,0.319]
[1725645640132,0.185899,54084.0,54081.0,0.319]
[1725645640379,0.001,54083.0,54081.0,0.319]
[1725645641084,0.369808,54082.0,54081.0,0.319]
[1725645641332,0.92452,54082.0,54081.0,0.1802]
[1725645641616,0.92459,54078.0,54077.0,1.2753]
[1725645641865,1.294426,54078.0,54077.0,1.2753]
[1725645642368,1.294426,54078.0,54071.0,0.1702]
[1725645642369,0.554815,54072.0,54071.0,0.1702]
[1725645642591,0.924692,54072.0,54071.0,0.1702]
[1725645643994,0.925692,54072.0,54071.0,0.1752]
[1725645644240,0.925692,54072.0,54071.0,0.1702]
[1725645644470,0.926692,54072.0,54071.0,0.1752]
[1725645644707,1.07409621,54072.0,54071.0,0.01]
[1725645644971,0.187938,54072.0,54071.0,0.01]
[1725645645205,0.003,54072.0,54071.0,0.01]
[1725645645442,0.002,54072.0,54071.0,0.005]
[1725645645679,0.002,54072.0,54071.0,1.24691]
[1725645646119,0.369846,54077.0,54071.0,0.688716]
[1725645646362,0.369838,54078.0,54071.0,1.965013]
[1725645646581,0.369844,54077.0,54072.0,0.184937]
[1725645646804,0.002,54072.0,54071.0,1.779073]
[1725645647020,0.003,54072.0,54071.0,1.784073]
[1725645647297,0.001,54072.0,54071.0,2.148957]
[1725645647538,0.001,54072.0,54071.0,2.150957]
[1725645647776,0.18493,54075.0,54071.0,1.779073]
[1725645648005,0.1415,54092.0,54073.0,0.184933]
[1725645648225,0.184925,54076.0,54073.0,0.184933]
[1725645648457,0.1877,54093.0,54076.0,0.1808]
[1725645648458,0.184905,54082.0,54076.0,0.1808]
[1725645648679,0.01963946,54087.0,54079.0,0.369828]
[1725645648908,0.184897,54085.0,54079.0,0.369828]
[1725645649130,0.369778,54087.0,54081.0,0.184907]
[1725645649131,0.369786,54086.0,54081.0,0.184907]
[1725645649354,0.369786,54086.0,54080.0,0.1713]
[1725645649355,0.184906,54082.0,54080.0,0.1713]
[1725645649576,0.01912273,54088.0,54080.0,0.1713]
[1725645649577,0.184901,54083.0,54080.0,0.1713]
[1725645649823,0.369699,54098.0,54080.0,0.1713]
[1725645649824,0.18489,54086.0,54082.0,0.184901]
[1725645650043,0.18489,54086.0,54083.0,0.1849]
[1725645650259,0.184887,54087.0,54083.0,0.1849]
[1725645650699,0.0199144,54096.0,54084.0,0.3276]
[1725645650926,0.369731,54094.0,54085.0,0.369782]
[1725645651181,0.507465,54103.0,54088.0,0.184882]
[1725645651182,0.184873,54091.0,54088.0,0.184882]
[1725645651639,0.184873,54091.0,54087.0,0.184887]
[1725645651870,0.369738,54093.0,54085.0,0.369782]
[1725645652087,0.184881,54089.0,54085.0,0.184894]
[1725645652305,0.369755,54090.0,54085.0,0.184894]
[1725645652306,0.184877,54090.0,54085.0,0.369786]
[1725645652529,0.001,54087.0,54086.0,0.554671]
[1725645652760,0.001,54091.0,54089.0,0.184878]
[1725645652979,0.001,54091.0,54090.0,0.554631]
[1725645653200,0.001,54091.0,54090.0,0.184877]
[1725645653429,0.001,54091.0,54090.0,2.372485]
[1725645653896,0.369697,54099.0,54090.0,2.372485]
[1725645653897,0.01983569,54098.0,54092.0,0.36974]
[1725645654162,0.1352,54106.0,54092.0,0.1455]
[1725645654389,0.03,54114.0,54092.0,0.1455]
[1725645654390,0.184855,54097.0,54093.0,0.184864]
[1725645654619,0.369703,54098.0,54093.0,0.184865]
[1725645654872,0.184854,54097.0,54093.0,0.184865]
[1725645655566,0.369686,54100.0,54092.0,0.515236]
[1725645655782,0.184854,54097.0,54092.0,0.700102]
[1725645656007,0.184854,54097.0,54093.0,0.184864]
[1725645656283,0.185854,54097.0,54093.0,0.189864]
[1725645656506,0.184856,54096.0,54093.0,0.184864]
[1725645656736,0.18436536,54096.0,54092.0,0.33037]
[1725645656969,0.554599,54093.0,54092.0,0.1505]
[1725645657188,0.184866,54093.0,54092.0,0.1455]
[1725645657633,0.55462,54091.0,54090.0,1.4481]
[1725645658324,0.55462,54091.0,54090.0,0.1728]
[1725645658995,0.55462,54091.0,54090.0,0.1778]
[1725645659212,0.926367,54091.0,54090.0,0.1828]
[1725645659461,1.845461,54091.0,54090.0,0.01]
[1725645659697,2.10010468,54091.0,54090.0,0.01]
[1725645659947,2.10210468,54091.0,54090.0,0.01]
[1725645660170,2.11210468,54091.0,54090.0,0.011632]
[1725645660390,2.09810468,54091.0,54090.0,0.001632]
[1725645660613,2.09810468,54091.0,54090.0,0.002632]
[1725645660614,1.04401068,54091.0,54090.0,0.002632]
[1725645660829,1.05801068,54091.0,54090.0,0.002632]
[1725645661272,1.04401068,54091.0,54090.0,0.001632]
[1725645661529,0.95801068,54091.0,54090.0,0.002632]
[1725645661779,0.58826368,54091.0,54090.0,0.002632]
[1725645662030,0.58826368,54091.0,54090.0,0.001632]
[1725645662271,0.57426368,54091.0,54090.0,0.001632]
[1725645662497,0.57426368,54091.0,54090.0,0.002632]
[1725645662726,0.57426368,54091.0,54090.0,0.001632]
[1725645662951,0.57626368,54091.0,54090.0,0.001632]
[1725645663216,0.94701068,54091.0,54090.0,0.006632]
[1725645663469,1.50165768,54091.0,54090.0,0.006632]
[1725645663711,1.60165768,54091.0,54090.0,0.006632]
[1725645663942,1.41575768,54091.0,54090.0,0.001632]
[1725645664193,1.04601068,54091.0,54090.0,0.001632]
[1725645664419,0.57626368,54091.0,54090.0,0.001632]
[1725645664644,0.002,54091.0,54090.0,0.149532]
[1725645664888,0.184873,54091.0,54090.0,0.149532]
[1725645665127,0.184873,54091.0,54090.0,0.153532]
[1725645665367,0.185873,54091.0,54090.0,0.158532]
[1725645665605,0.184873,54091.0,54090.0,0.149532]
[1725645665892,1.295114,54091.0,54090.0,0.007632]
[1725645666145,1.295114,54091.0,54090.0,0.012632]
[1725645666146,1.296114,54091.0,54090.0,0.012632]
[1725645666374,2.1747748,54091.0,54090.0,0.007632]
[1725645666628,2.5655218,54091.0,54090.0,0.012632]
[1725645667083,2.5655218,54091.0,54090.0,0.007632]
[1725645667084,2.5645218,54091.0,54090.0,0.007632]
[1725645667337,2.5635218,54091.0,54090.0,0.001632]
[1725645667594,2.70027266,54091.0,54090.0,0.001632]
[1725645667816,2.65384838,54091.0,54090.0,0.001632]
[1725645668081,2.65384838,54091.0,54071.0,0.471332]
[1725645668082,0.369832,54079.0,54071.0,0.471332]
[1725645668304,0.554815,54072.0,54071.0,0.001632]
[1725645668562,0.924692,54072.0,54071.0,0.001632]
[1725645669053,1.294569,54072.0,54071.0,0.001632]
[1725645669775,0.924692,54072.0,54071.0,0.001632]
[1725645670305,0.924692,54072.0,54071.0,0.003632]
[1725645670532,0.924692,54072.0,54071.0,0.001632]
[1725645670778,1.294569,54072.0,54071.0,0.001632]
[1725645671016,1.76056774,54072.0,54071.0,0.001632]
[1725645671250,2.15162665,54072.0,54071.0,0.001632]
[1725645671717,1.78474965,54072.0,54071.0,0.001632]
[1725645671938,1.59644965,54072.0,54071.0,0.001632]
[1725645672167,1.59544965,54072.0,54071.0,0.001632]
[1725645672391,1.42775091,54072.0,54071.0,0.001632]
[1725645672616,1.41375091,54072.0,54071.0,0.001632]
[1725645673073,1.42475091,54072.0,54071.0,0.001632]
[1725645673325,1.41375091,54072.0,54071.0,0.001632]
[1725645673567,1.41975091,54072.0,54071.0,0.001632]
[1725645673788,1.43375091,54072.0,54071.0,0.001632]
[1725645674015,1.43375091,54072.0,54071.0,0.145432]
[1725645674247,1.41975091,54072.0,54071.0,0.145432]
[1725645674462,1.42575091,54072.0,54071.0,0.145432]
[1725645674680,1.41975091,54072.0,54071.0,0.145432]
[1725645674909,1.31375091,54072.0,54071.0,0.145432]
[1725645675125,1.31775091,54072.0,54071.0,0.145432]
[1725645675345,1.31875091,54072.0,54071.0,0.145432]
[1725645675566,1.31875091,54072.0,54071.0,0.001632]
[1725645675782,1.31475091,54072.0,54071.0,0.001632]
[1725645676200,1.31475091,54072.0,54071.0,0.002632]
[1725645677064,1.78462791,54072.0,54071.0,0.002632]
[1725645677301,2.34008861,54072.0,54071.0,0.002632]
[1725645677552,1.294807,54062.0,54061.0,0.47134]
[1725645677779,1.394807,54062.0,54061.0,0.00164]
[1725645679444,1.397807,54062.0,54061.0,0.00164]
[1725645679895,1.394807,54062.0,54061.0,0.00164]
[1725645680116,1.398807,54062.0,54061.0,0.00164]
[1725645680343,1.41877473,54062.0,54061.0,0.00164]
[1725645680793,1.41477473,54062.0,54061.0,0.00164]
[1725645681021,1.42177473,54062.0,54061.0,0.00164]
[1725645681248,1.42477473,54062.0,54061.0,0.00164]
[1725645681508,1.42177473,54062.0,54061.0,0.00164]
[1725645681721,1.42677473,54062.0,54061.0,0.00164]
[1725645681968,1.79671973,54062.0,54061.0,0.00164]
[1725645682222,0.002,54057.0,54045.0,0.1393]
[1725645682461,0.35270137,54062.0,54047.0,0.00164]
[1725645682462,0.71271,54053.0,54047.0,0.00164]
[1725645682695,0.02,54056.0,54035.0,0.00164]
[1725645682696,0.567102,54044.0,54035.0,0.00164]
[1725645682957,1.677306,54044.0,54035.0,0.00164]
[1725645683227,2.147374,54044.0,54035.0,0.00164]
[1725645683456,1.997053,54036.0,54035.0,0.00164]
[1725645683684,1.997053,54036.0,54024.0,0.4697]
[1725645683685,1.283442,54034.0,54024.0,0.4697]
[1725645683919,1.283442,54034.0,54020.0,0.55430836]
[1725645683920,0.555339,54021.0,54020.0,0.55430836]
[1725645684141,0.925565,54021.0,54020.0,0.55430836]
[1725645684379,0.925632,54017.0,54010.0,0.1837]
[1725645684603,1.395885,54017.0,54005.0,0.1401]
[1725645684826,1.82053083,54017.0,54006.0,0.17964]
[1725645685054,1.766138,54017.0,54006.0,0.17964]
[1725645685296,1.296127,54007.0,54006.0,0.00164]
[1725645685582,0.555483,54007.0,54006.0,0.00164]
[1725645685788,0.185161,54007.0,54006.0,0.00164]
[1725645686013,0.925805,54007.0,54006.0,0.00164]
[1725645686479,0.555483,54007.0,54006.0,0.00164]
[1725645686938,0.370281,54014.0,54006.0,0.00164]
[1725645686939,0.37029,54012.0,54006.0,0.00164]
[1725645687165,0.470282,54013.0,54007.0,0.1766]
[1725645687406,0.185152,54010.0,54007.0,0.1766]
[1725645687629,0.1,54016.0,54007.0,0.1766]
[1725645687877,0.555472,54008.0,54007.0,0.1766]
[1725645689313,0.925805,54007.0,54006.0,0.00164]
[1725645689570,1.210966,54007.0,54006.0,0.00164]
[1725645689802,1.210966,54007.0,53994.0,0.4697]
[1725645689803,0.185202,53995.0,53994.0,0.4697]
[1725645690026,0.185202,53995.0,53989.0,1.4539]
[1725645690027,0.555657,53990.0,53989.0,1.4539]
[1725645690257,0.555657,53990.0,53989.0,1.2753]
[1725645690519,0.185219,53990.0,53989.0,1.2753]
[1725645690774,0.555657,53990.0,53989.0,1.2753]
[1725645691256,0.1,54000.0,53989.0,1.2753]
[1725645691498,0.555657,53990.0,53989.0,1.2753]
[1725645692694,0.556657,53990.0,53989.0,1.2753]
[1725645692922,0.186219,53990.0,53989.0,1.2753]
[1725645693146,0.556657,53990.0,53989.0,1.2753]
[1725645693399,0.556657,53990.0,53987.0,0.1786]
[1725645693400,0.185226,53988.0,53987.0,0.1786]
[1725645693628,0.92613,53988.0,53987.0,0.1786]
[1725645693850,0.555709,53985.0,53984.0,0.1383]
[1725645694376,0.55572,53984.0,53983.0,0.1697]
[1725645694660,0.18524,53984.0,53983.0,0.1697]
[1725645695107,0.007,53988.0,53983.0,0.1697]
[1725645695349,0.18524,53984.0,53983.0,0.1697]
[1725645695571,0.370479,53985.0,53983.0,0.1697]
[1725645695572,0.185236,53985.0,53983.0,0.1697]
[1725645695795,0.001,53984.0,53983.0,0.1697]
[1725645696018,0.55672,53984.0,53983.0,0.1697]
[1725645696509,0.9272,53984.0,53983.0,0.1697]
[1725645696993,0.001,53984.0,53983.0,0.1697]
[1725645697237,0.001,53984.0,53983.0,0.87283]
[1725645697681,0.1366,54006.0,53985.0,0.547072]
[1725645697682,0.185207,53994.0,53985.0,0.547072]
[1725645697909,0.370365,54001.0,53985.0,0.1766]
[1725645698130,0.370408,53995.0,53990.0,0.1766]
[1725645698355,0.1,54000.0,53990.0,0.1766]
[1725645698356,0.185216,53991.0,53990.0,0.1766]
[1725645698580,0.555648,53991.0,53990.0,0.1766]
[1725645698819,0.92608,53991.0,53990.0,0.1766]
[1725645699039,0.555699,53986.0,53985.0,0.1805]
[1725645699279,0.926165,53986.0,53985.0,0.1805]
[1725645699986,0.555699,53986.0,53985.0,0.1805]
[1725645700212,0.185233,53986.0,53985.0,0.1805]
[1725645700433,0.555699,53986.0,53985.0,0.1805]
[1725645701140,0.926165,53986.0,53985.0,0.1805]
[1725645701365,0.555699,53986.0,53985.0,0.1805]
[1725645701583,0.185227,53988.0,53985.0,0.1805]
[1725645701798,0.185224,53989.0,53985.0,0.1805]
[1725645702035,0.001,53986.0,53985.0,0.1805]
[1725645702262,0.186233,53986.0,53985.0,0.1805]
[1725645702493,0.186233,53986.0,53985.0,0.1825]
[1725645702713,0.556699,53986.0,53985.0,0.1825]
[1725645703163,0.555699,53986.0,53985.0,0.1825]
[1725645703604,0.555699,53986.0,53985.0,0.1805]
[1725645704059,0.555699,53986.0,53985.0,0.1825]
[1725645704500,0.926165,53986.0,53985.0,0.1825]
[1725645704749,0.927165,53986.0,53985.0,0.1805]
[1725645705011,0.185233,53986.0,53985.0,0.1825]
[1725645705483,0.185233,53986.0,53985.0,0.1805]
[1725645705713,0.555699,53986.0,53985.0,0.1805]
[1725645706407,0.001,53986.0,53985.0,0.1805]
[1725645706631,0.186233,53986.0,53985.0,0.1805]
[1725645706841,0.185233,53986.0,53985.0,0.1805]
[1725645707067,0.186233,53986.0,53985.0,0.1805]
[1725645707603,0.556699,53986.0,53985.0,0.1825]
[1725645708059,0.556699,53986.0,53985.0,0.1805]
[1725645708297,0.928165,53986.0,53985.0,0.1825]
[1725645708523,1.398631,53986.0,53985.0,0.002]
[1725645709623,1.397631,53986.0,53985.0,0.003632]
[1725645710057,1.397631,53986.0,53985.0,0.001632]
[1725645710303,1.399631,53986.0,53985.0,0.001632]
[1725645710731,1.396631,53986.0,53985.0,0.001632]
[1725645711180,1.781097,53986.0,53985.0,0.001632]
[1725645711642,1.804097,53986.0,53985.0,0.001632]
[1725645711872,1.802097,53986.0,53985.0,0.001632]
[1725645712314,2.35713786,53986.0,53985.0,0.001632]
[1725645712537,2.502763,53986.0,53985.0,0.001632]
[1725645712776,2.62369078,53986.0,53985.0,0.001632]
[1725645713001,2.67808361,53986.0,53985.0,0.001632]
[1725645713245,2.25522478,53986.0,53985.0,0.001632]
[1725645713703,2.25322478,53986.0,53985.0,0.001632]
[1725645713962,2.62369078,53986.0,53985.0,0.001632]
[1725645714209,2.63769078,53986.0,53985.0,0.001632]
[1725645714653,2.63669078,53986.0,53985.0,0.001632]
[1725645715099,2.527763,53986.0,53985.0,0.001632]
[1725645716049,2.157297,53986.0,53985.0,0.001632]
[1725645716549,1.961697,53986.0,53985.0,0.001632]
[1725645716819,1.33636186,53980.0,53979.0,0.00013]
[1725645717053,1.99212186,53980.0,53979.0,0.00013]
[1725645717540,0.027,53986.0,53985.0,0.3183]
[1725645717824,0.013,53986.0,53985.0,0.3183]
[1725645718042,0.01,54006.0,53986.0,0.1809]
[1725645718043,0.22484086,53996.0,53986.0,0.1809]
[1725645718289,0.370392,53997.0,53987.0,0.1809]
[1725645718524,0.185222,53990.0,53987.0,0.1809]
[1725645718751,0.185217,53991.0,53987.0,0.1809]
[1725645718977,0.185222,53990.0,53987.0,0.1809]
[1725645719438,0.22484086,53989.0,53987.0,0.1809]
[1725645720856,0.001,53990.0,53989.0,0.185222]
[1725645721082,0.01999263,53994.0,53989.0,0.1836]
[1725645721329,0.01999263,53994.0,53990.0,0.185218]
[1725645721553,0.185219,53990.0,53989.0,0.1836]
[1725645721798,0.926095,53990.0,53989.0,0.1836]
[1725645722027,0.926095,53990.0,53987.0,0.002]
[1725645722028,0.555678,53988.0,53987.0,0.002]
[1725645722257,0.92613,53988.0,53987.0,0.002]
[1725645722730,0.926165,53986.0,53985.0,0.001632]
[1725645723016,0.555699,53986.0,53985.0,0.001632]
[1725645723268,0.001,53990.0,53986.0,0.1731]